[Event "28th CRO-chT 1B-Men 2019"]
[Site "Mali Losinj"]
[Date "2019.10.02"]
[Round "5.17"]
[White "Martic, Zlatko"]
[Black "Polok, Kacper"]
[Result "1-0"]
[ECO "B32"]
[WhiteElo "2299"]
[BlackElo "2301"]
[Annotator "NA"]
[PlyCount "93"]
[EventDate "2019.09.28"]
[EventType "team-tourn"]
[EventCountry "CRO"]
[SourceTitle "playchess.com"]
[Source "ChessBase"]
[SourceQuality "1"]
[TimeControl "40/5400+30:1800+30"]

1. e4 {[%emt 0:05:30]} c5 {[%emt 0:02:30]} 2. Nf3 {[%emt 0:00:30]} Nc6 {[%emt 0:00:00]} 3. d4 {[%emt 0:00:30]} cxd4 {[%emt 0:00:00]} 4. Nxd4 {[%emt 0:00:00]} e5 {[%emt 0:00:30]} 5. Nb5 {[%emt 0:00:00]} d6 {[%emt 0:00:00]} 6. N1c3 {[%emt 0:00:30]} a6 {[%emt 0:00:00]} 7. Na3 {[%emt 0:00:00]} Be6 {[%emt 0:02:30]} 8. Nc4 {[%emt 0:05:00]} b5 {[%emt 0:01:30]} 9. Ne3 {[%emt 0:00:00]} Nf6 {[%emt 0:00:30]} 10. Bd3 {[%emt 0:02:00]} Be7 {[%emt 0:25:30]} 11. a4 {[%emt 0:02:30]} b4 {[%emt 0:06:30]} 12. Ncd5 {[%emt 0:00:30]} O-O {[%emt 0:00:00]} 13. O-O {[%emt 0:03:30]} Nd7 {[%emt 0:06:00]} 14. c3 {[%emt 0:04:30]} bxc3 {[%emt 0:04:30]} 15. bxc3 {[%emt 0:00:00]} Nc5 {[%emt 0:00:30]} 16. Ba3 {[%emt 0:02:00]} Bg5 {[%emt 0:01:30]} 17. Bxc5 {[%emt 0:10:30]} dxc5 {[%emt 0:00:30]} 18. Qe2 {[%emt 0:00:30]} Bxe3 {[%emt 0:00:30]} 19. Nxe3 {[%emt 0:04:30]} Qa5 {[%emt 0:04:30]} 20. Rfc1 {[%emt 0:00:30]} Ne7 {[%emt 0:06:30]} 21. Nc4 {[%emt 0:03:30]} Qc7 {[%emt 0:04:30]} 22. a5 {[%emt 0:18:30]} Nc6 {[%emt 0:01:30]} 23. Qa2 {[%emt 0:01:30]} Rad8 {[%emt 0:05:30]} 24. Bf1 {[%emt 0:00:30]} Na7 {[%emt 0:05:30]} 25. Qb2 {[%emt 0:09:30]} Bxc4 {[%emt 0:03:41]} 26. Bxc4 {[%emt 0:01:30]} Rb8 {[%emt 0:00:04]} 27. Qa2 {[%emt 0:05:35]} Nb5 {[%emt 0:00:11]} 28. Rab1 {[%emt 0:04:53]} g6 {[%emt 0:00:31]} 29. h3 {[%emt 0:01:18]} Kg7 {[%emt 0:00:13]} 30. Bxb5 {[%emt 0:01:05]} axb5 {[%emt 0:02:28]} 31. a6 {[%emt 0:01:22]} Rb6 {[%emt 0:01:08]} 32. Rb3 {[%emt 0:09:58]} Ra8 {[%emt 0:00:42]} 33. Qb1 {[%emt 0:00:12]} Qc6 {[%emt 0:01:20]} 34. Qb2 {[%emt 0:01:02]} Raxa6 {[%emt 0:04:37]} 35. c4 {[%emt 0:01:07]} b4 {[%emt 0:05:09]} 36. Qxe5+ {[%emt 0:00:11]} f6 {[%emt 0:00:07]} 37. Qe7+ {[%emt 0:00:19]} Kh6 {[%emt 0:02:36]} 38. Qf8+ {[%emt 0:00:09]} Kh5 {[%emt 0:00:16]} 39. g4+ {[%emt 0:00:57]} Kg5 {[%emt 0:00:05]} 40. Re3 {[%emt 0:00:00]} Ra8 {[%emt 0:00:00]} 41. h4+ {[%emt 0:05:22]} Kf4 {[%emt 0:13:22]} 42. Qh6+ {[%emt 0:01:30]} Ke5 {[%emt 0:00:00]} 43. Rd1 {[%emt 0:00:30]} Rg8 {[%emt 0:08:27]} 44. Rd5+ {[%emt 0:00:30]} Ke6 {[%emt 0:00:06]} 45. e5 {[%emt 0:00:30]} b3 {[%emt 0:04:10]} 46. exf6+ {[%emt 0:00:30]} Kxf6 {[%emt 0:00:12]} 47. Rf3+ {[%emt 0:00:30]} 1-0

[Event "28th CRO-chT 1B-Men 2019"]
[Site "Mali Losinj"]
[Date "2019.10.02"]
[Round "5.18"]
[White "Curic, Drazen"]
[Black "Matanovic, Luka"]
[Result "0-1"]
[ECO "C29"]
[WhiteElo "2137"]
[BlackElo "2245"]
[Annotator "NA"]
[PlyCount "54"]
[EventDate "2019.09.28"]
[EventType "team-tourn"]
[EventCountry "CRO"]
[SourceTitle "playchess.com"]
[Source "ChessBase"]
[SourceQuality "1"]
[TimeControl "40/5400+30:1800+30"]

1. e4 {[%emt 0:00:30]} e5 {[%emt 0:00:30]} 2. Nc3 {[%emt 0:00:30]} Nf6 {[%emt 0:00:30]} 3. f4 {[%emt 0:00:30]} d5 {[%emt 0:01:30]} 4. fxe5 {[%emt 0:01:30]} Nxe4 {[%emt 0:00:30]} 5. Qf3 {[%emt 0:00:30]} Nxc3 {[%emt 0:02:30]} 6. dxc3 {[%emt 0:00:00]} Be6 {[%emt 0:16:30]} 7. Bf4 {[%emt 0:01:00]} Qd7 {[%emt 0:05:30]} 8. h3 {[%emt 0:05:30]} Be7 {[%emt 0:05:30]} 9. O-O-O {[%emt 0:00:30]} Nc6 {[%emt 0:04:30]} 10. Qg3 {[%emt 0:03:30]} g5 {[%emt 0:05:30]} 11. Be3 {[%emt 0:00:30]} O-O-O {[%emt 0:01:30]} 12. Bb5 {[%emt 0:00:30]} a6 {[%emt 0:00:30]} 13. Be2 {[%emt 0:13:30]} Na5 {[%emt 0:11:30]} 14. Nf3 {[%emt 0:01:30]} Qa4 {[%emt 0:03:30]} 15. a3 {[%emt 0:06:30]} Nc4 {[%emt 0:10:30]} 16. Bxc4 {[%emt 0:00:30]} Qxc4 {[%emt 0:00:30]} 17. Nd2 {[%emt 0:06:30]} Qa2 {[%emt 0:01:30]} 18. Nb3 {[%emt 0:03:30]} d4 {[%emt 0:09:24]} 19. cxd4 {[%emt 0:00:30]} a5 {[%emt 0:00:47]} 20. d5 {[%emt 0:02:30]} Bxd5 {[%emt 0:04:28]} 21. Qg4+ {[%emt 0:00:30]} Kb8 {[%emt 0:01:45]} 22. Qa4 {[%emt 0:00:30]} Bb4 {[%emt 0:01:49]} 23. Rxd5 {[%emt 0:12:30]} Rxd5 {[%emt 0:00:06]} 24. Rd1 {[%emt 0:06:30]} b5 {[%emt 0:00:30]} 25. Rxd5 {[%emt 0:01:30]} bxa4 {[%emt 0:00:30]} 26. axb4 {[%emt 0:00:30]} axb3 {[%emt 0:00:30]} 27. Rxa5 {[%emt 0:00:30]} Kb7 {[%emt 0:00:30]} 0-1

[Event "28th CRO-chT 1B-Men 2019"]
[Site "Mali Losinj"]
[Date "2019.10.02"]
[Round "5.19"]
[White "Medvegy, Zoltan"]
[Black "Vavulin, Maxim"]
[Result "1-0"]
[ECO "A21"]
[WhiteElo "2539"]
[BlackElo "2550"]
[Annotator "ChessBase"]
[PlyCount "71"]
[EventDate "2019.09.28"]
[EventType "team-tourn"]
[EventCountry "CRO"]
[SourceTitle "playchess.com"]
[Source "ChessBase"]
[SourceQuality "1"]
[TimeControl "40/5400+30:1800+30"]

1. c4 {[%emt 0:00:30]} g6 {[%emt 0:00:30]} 2. Nc3 {[%emt 0:00:30]} Bg7 {[%emt 0:00:00]} 3. g3 {[%emt 0:00:00]} e5 {[%emt 0:01:00]} 4. Bg2 {[%emt 0:00:00]} f5 {[%emt 0:00:30]} 5. d3 {[%emt 0:02:30]} Nf6 {[%emt 0:00:00]} 6. e4 {[%emt 0:00:30]} O-O {[%emt 0:01:00]} 7. Nge2 {[%emt 0:00:30]} d6 {[%emt 0:01:30]} 8. exf5 {[%emt 0:02:30]} gxf5 {[%emt 0:00:30]} 9. O-O {[%emt 0:01:30]} c6 {[%emt 0:05:30]} 10. d4 {[%emt 0:03:30]} Qe8 {[%emt 0:20:30]} 11. b3 {[%emt 0:05:30]} f4 {[%emt 0:01:30]} 12. dxe5 {[%emt 0:27:30]} dxe5 {[%emt 0:01:30]} 13. Ba3 {[%emt 0:00:30]} Rf7 {[%emt 0:10:30]} 14. gxf4 {[%emt 0:03:30]} exf4 {[%emt 0:06:30]} 15. Nxf4 {[%emt 0:13:30]} Ng4 {[%emt 0:03:30]} 16. Nfe2 {[%emt 0:05:30]} Rd7 {[%emt 0:12:30]} 17. Qe1 {[%emt 0:01:30]} Rd8 {[%emt 0:16:54]} 18. h3 {[%emt 0:01:30]} Nh6 {[%emt 0:01:32]} 19. Rd1 {[%emt 0:02:30]} Nd7 {[%emt 0:01:05]} 20. Ne4 {[%emt 0:03:30]} Nf5 {[%emt 0:07:15]} 21. N2g3 {[%emt 0:02:30]} Ne5 {[%emt 0:01:43]} 22. f4 {[%emt 0:01:30]} Rxd1 {[%emt 0:02:02]} 23. Qxd1 {[%emt 0:00:30]} Ne3 {[%emt 0:00:28]} 24. Nh5 {[%emt 0:05:25]} Nd7 {[%emt 0:03:18]} 25. Qe2 {[%emt 0:07:20]} Bd4 {[%emt 0:00:31]} 26. Kh1 {[%emt 0:00:27]} Qg6 {[%emt 0:00:29]} 27. Bb2 {[%emt 0:02:14]} Bxb2 {[%emt 0:00:37]} 28. Rg1 {[%emt 0:02:15]} Kf8 {[%emt 0:00:33]} 29. Qxb2 {[%emt 0:02:22]} Qxh5 {[%emt 0:00:25]} 30. Qh8+ {[%emt 0:00:27]} Ke7 {[%emt 0:00:26]} 31. Re1 {[%emt 0:00:53]} Nxg2 {[%emt 0:00:39]} 32. Ng3+ {[%emt 0:00:25]} Nxe1 {[%emt 0:00:11]} 33. Nxh5 {[%emt 0:00:04]} Nf3 {[%emt 0:00:49]} 34. Qxh7+ {[%emt 0:00:46]} Kd8 {[%emt 0:00:11]} 35. Qe4 {[%emt 0:00:32]} Nh4 {[%emt 0:00:43]} 36. f5 {[%emt 0:00:13]} 1-0

[Event "28th CRO-chT 1B-Men 2019"]
[Site "Mali Losinj"]
[Date "2019.10.02"]
[Round "5.21"]
[White "Bilobrk, Franjo"]
[Black "Zufic, Miroslav"]
[Result "1-0"]
[ECO "D35"]
[WhiteElo "2334"]
[BlackElo "2367"]
[Annotator "NA"]
[PlyCount "67"]
[EventDate "2019.09.28"]
[EventType "team-tourn"]
[EventCountry "CRO"]
[SourceTitle "playchess.com"]
[Source "ChessBase"]
[SourceQuality "1"]
[TimeControl "40/5400+30:1800+30"]

1. d4 {[%emt 0:00:30]} Nf6 {[%emt 0:00:30]} 2. c4 {[%emt 0:00:00]} e6 {[%emt 0:00:00]} 3. Nf3 {[%emt 0:00:00]} d5 {[%emt 0:00:00]} 4. Nc3 {[%emt 0:00:00]} Nbd7 {[%emt 0:02:30]} 5. cxd5 {[%emt 0:00:00]} exd5 {[%emt 0:00:00]} 6. Bg5 {[%emt 0:00:30]} Be7 {[%emt 0:00:00]} 7. e3 {[%emt 0:00:00]} c6 {[%emt 0:00:30]} 8. Bd3 {[%emt 0:01:00]} Nh5 {[%emt 0:00:30]} 9. Bxe7 {[%emt 0:01:30]} Qxe7 {[%emt 0:00:00]} 10. O-O {[%emt 0:00:30]} Nhf6 {[%emt 0:01:00]} 11. Qc2 {[%emt 0:01:30]} O-O {[%emt 0:00:30]} 12. Rab1 {[%emt 0:00:30]} Re8 {[%emt 0:11:30]} 13. b4 {[%emt 0:00:30]} a6 {[%emt 0:02:30]} 14. a4 {[%emt 0:02:30]} Nb6 {[%emt 0:00:30]} 15. Ne5 {[%emt 0:03:30]} g6 {[%emt 0:04:30]} 16. a5 {[%emt 0:02:30]} Nbd7 {[%emt 0:00:30]} 17. f4 {[%emt 0:01:30]} Nh5 {[%emt 0:09:30]} 18. Rfe1 {[%emt 0:18:30]} Nf8 {[%emt 0:18:30]} 19. Na4 {[%emt 0:00:30]} f6 {[%emt 0:01:30]} 20. Nb6 {[%emt 0:07:30]} Rb8 {[%emt 0:03:30]} 21. Nf3 {[%emt 0:03:30]} Bg4 {[%emt 0:02:30]} 22. Nd2 {[%emt 0:03:30]} Ng7 {[%emt 0:03:30]} 23. Qc5 {[%emt 0:06:30]} Nfe6 {[%emt 0:09:30]} 24. Qxe7 {[%emt 0:06:30]} Rxe7 {[%emt 0:00:30]} 25. Rbc1 {[%emt 0:00:30]} Rbe8 {[%emt 0:00:30]} 26. Kf2 {[%emt 0:00:30]} Bf5 {[%emt 0:00:30]} 27. Be2 {[%emt 0:00:30]} h5 {[%emt 0:03:30]} 28. Na4 {[%emt 0:11:30]} Bg4 {[%emt 0:03:30]} 29. Bd3 {[%emt 0:00:30]} Bf5 {[%emt 0:00:30]} 30. Be2 {[%emt 0:00:00]} Bg4 {[%emt 0:01:30]} 31. Bd3 {[%emt 0:00:00]} Bf5 {[%emt 0:00:30]} 32. Be2 {[%emt 0:00:30]} g5 {[%emt 0:00:30]} 33. g3 {[%emt 0:00:30]} g4 {[%emt 0:00:30]} 34. Bf1 {[%emt 0:01:30]} 1-0

[Event "28th CRO-chT 1B-Men 2019"]
[Site "Mali Losinj"]
[Date "2019.10.02"]
[Round "5.24"]
[White "Ciganovic, Nikola"]
[Black "Zelic, Mladen"]
[Result "1-0"]
[ECO "C45"]
[WhiteElo "2219"]
[BlackElo "2209"]
[Annotator "NA"]
[PlyCount "65"]
[EventDate "2019.09.28"]
[EventType "team-tourn"]
[EventCountry "CRO"]
[SourceTitle "playchess.com"]
[Source "ChessBase"]
[SourceQuality "1"]
[TimeControl "40/5400+30:1800+30"]

1. e4 {[%emt 0:00:30]} e5 {[%emt 0:00:30]} 2. Nf3 {[%emt 0:00:00]} Nc6 {[%emt 0:00:00]} 3. d4 {[%emt 0:00:00]} exd4 {[%emt 0:00:00]} 4. Nxd4 {[%emt 0:00:30]} Bc5 {[%emt 0:00:00]} 5. Nb3 {[%emt 0:00:00]} Bb6 {[%emt 0:00:00]} 6. Nc3 {[%emt 0:00:00]} Nf6 {[%emt 0:00:30]} 7. Qe2 {[%emt 0:00:30]} O-O {[%emt 0:00:30]} 8. Bg5 {[%emt 0:00:30]} h6 {[%emt 0:06:30]} 9. Bh4 {[%emt 0:00:30]} Re8 {[%emt 0:07:30]} 10. O-O-O {[%emt 0:00:30]} d6 {[%emt 0:03:30]} 11. f3 {[%emt 0:00:30]} Be6 {[%emt 0:05:30]} 12. g4 {[%emt 0:01:30]} Ne5 {[%emt 0:19:30]} 13. Nd4 {[%emt 0:14:30]} Ng6 {[%emt 0:13:30]} 14. Nxe6 {[%emt 0:14:30]} Rxe6 {[%emt 0:00:30]} 15. Bg3 {[%emt 0:00:30]} Qe8 {[%emt 0:09:30]} 16. h4 {[%emt 0:14:30]} Rd8 {[%emt 0:06:30]} 17. h5 {[%emt 0:05:30]} Nf8 {[%emt 0:01:30]} 18. Qh2 {[%emt 0:09:30]} Qc6 {[%emt 0:08:40]} 19. Bd3 {[%emt 0:06:30]} N8h7 {[%emt 0:02:54]} 20. e5 {[%emt 0:05:30]} Nd7 {[%emt 0:06:09]} 21. Be4 {[%emt 0:05:22]} Qc5 {[%emt 0:00:42]} 22. exd6 {[%emt 0:01:35]} cxd6 {[%emt 0:01:16]} 23. Bxd6 {[%emt 0:00:32]} Qc8 {[%emt 0:02:50]} 24. Bf5 {[%emt 0:01:30]} Ree8 {[%emt 0:00:28]} 25. Nd5 {[%emt 0:01:03]} Qc4 {[%emt 0:00:11]} 26. b3 {[%emt 0:09:52]} Qa6 {[%emt 0:00:24]} 27. Kb1 {[%emt 0:01:24]} Nc5 {[%emt 0:00:34]} 28. Bc7 {[%emt 0:02:40]} Rxd5 {[%emt 0:02:15]} 29. Rxd5 {[%emt 0:00:08]} Re2 {[%emt 0:00:18]} 30. Rd8+ {[%emt 0:00:52]} Nf8 {[%emt 0:00:47]} 31. Rxf8+ {[%emt 0:00:04]} Kxf8 {[%emt 0:00:12]} 32. Qd6+ {[%emt 0:00:06]} Re7 {[%emt 0:00:34]} 33. Qd8+ {[%emt 0:00:06]} 1-0

[Event "28th CRO-chT 1B-Men 2019"]
[Site "Mali Losinj"]
[Date "2019.10.03"]
[Round "6.1"]
[White "Sedlak, Nikola"]
[Black "Sokolov, Ivan"]
[Result "1/2-1/2"]
[ECO "D61"]
[WhiteElo "2557"]
[BlackElo "2584"]
[Annotator "RC"]
[PlyCount "51"]
[EventDate "2019.09.28"]
[EventType "team-tourn"]
[EventCountry "CRO"]
[SourceTitle "playchess.com"]
[Source "ChessBase"]
[SourceQuality "1"]
[TimeControl "40/5400+30:1800+30"]

1. d4 {[%emt 0:00:30]} Nf6 {[%emt 0:10:30]} 2. c4 {[%emt 0:00:00]} e6 {[%emt 0:00:30]} 3. Nf3 {[%emt 0:00:00]} d5 {[%emt 0:00:30]} 4. Nc3 {[%emt 0:00:30]} Nbd7 {[%emt 0:00:30]} 5. Qc2 {[%emt 0:00:30]} Be7 {[%emt 0:12:30]} 6. Bg5 {[%emt 0:01:30]} O-O {[%emt 0:01:30]} 7. e3 {[%emt 0:00:30]} h6 {[%emt 0:01:30]} 8. Bh4 {[%emt 0:00:30]} c5 {[%emt 0:00:30]} 9. dxc5 {[%emt 0:04:30]} Nxc5 {[%emt 0:01:30]} 10. Rd1 {[%emt 0:04:30]} Qa5 {[%emt 0:09:30]} 11. Nd2 {[%emt 0:02:30]} Bd7 {[%emt 0:09:30]} 12. a3 {[%emt 0:10:30]} g5 {[%emt 0:03:30]} 13. Bg3 {[%emt 0:02:30]} Nce4 {[%emt 0:01:30]} 14. Be5 {[%emt 0:01:30]} Nxd2 {[%emt 0:20:30]} 15. Rxd2 {[%emt 0:00:30]} Bc6 {[%emt 0:02:30]} 16. h4 {[%emt 0:15:30]} dxc4 {[%emt 0:00:30]} 17. Bd4 {[%emt 0:02:30]} g4 {[%emt 0:03:02]} 18. Bxc4 {[%emt 0:00:30]} Bxg2 {[%emt 0:01:32]} 19. Rg1 {[%emt 0:00:30]} Bf3 {[%emt 0:00:48]} 20. Bxe6 {[%emt 0:00:30]} fxe6 {[%emt 0:02:14]} 21. Qg6+ {[%emt 0:00:30]} Kh8 {[%emt 0:00:02]} 22. Qxh6+ {[%emt 0:00:30]} Kg8 {[%emt 0:00:02]} 23. Qg6+ {[%emt 0:00:30]} Kh8 {[%emt 0:00:02]} 24. Rxg4 {[%emt 0:03:30]} Bxg4 {[%emt 0:00:40]} 25. Qh6+ {[%emt 0:00:00]} Kg8 {[%emt 0:00:00]} 26. Qg6+ {[%emt 0:01:00]} 1/2-1/2

[Event "28th CRO-chT 1B-Men 2019"]
[Site "Mali Losinj"]
[Date "2019.10.03"]
[Round "6.6"]
[White "Tomasic, Roland"]
[Black "Tesla, Miro"]
[Result "1-0"]
[ECO "B86"]
[WhiteElo "2111"]
[BlackElo "2073"]
[Annotator "NA"]
[PlyCount "111"]
[EventDate "2019.09.28"]
[EventType "team-tourn"]
[EventCountry "CRO"]
[SourceTitle "playchess.com"]
[Source "ChessBase"]
[SourceQuality "1"]
[TimeControl "40/5400+30:1800+30"]

1. e4 {[%emt 0:00:30]} c5 {[%emt 0:00:30]} 2. Nf3 {[%emt 0:00:00]} d6 {[%emt 0:00:30]} 3. d4 {[%emt 0:00:00]} cxd4 {[%emt 0:00:00]} 4. Nxd4 {[%emt 0:00:00]} Nf6 {[%emt 0:00:00]} 5. Nc3 {[%emt 0:00:00]} a6 {[%emt 0:00:30]} 6. Bc4 {[%emt 0:00:00]} e6 {[%emt 0:00:30]} 7. Bb3 {[%emt 0:00:00]} Nbd7 {[%emt 0:00:30]} 8. f4 {[%emt 0:01:30]} Nc5 {[%emt 0:00:00]} 9. Qf3 {[%emt 0:00:30]} b5 {[%emt 0:01:00]} 10. f5 {[%emt 0:00:30]} e5 {[%emt 0:00:30]} 11. Nc6 {[%emt 0:01:30]} Qd7 {[%emt 0:01:30]} 12. Nb4 {[%emt 0:00:30]} Nxb3 {[%emt 0:00:30]} 13. axb3 {[%emt 0:00:30]} Bb7 {[%emt 0:00:30]} 14. Bg5 {[%emt 0:05:30]} Nxe4 {[%emt 0:03:30]} 15. Nxe4 {[%emt 0:04:30]} d5 {[%emt 0:00:30]} 16. Bd2 {[%emt 1:03:47]} dxe4 {[%emt 0:00:30]} 17. Qg4 {[%emt 0:00:03]} f6 {[%emt 0:17:30]} 18. O-O-O {[%emt 0:01:04]} Qf7 {[%emt 0:00:30]} 19. Na2 {[%emt 0:04:27]} Bc5 {[%emt 0:00:30]} 20. Rhe1 {[%emt 0:00:48]} O-O {[%emt 0:04:30]} 21. Nc3 {[%emt 0:01:29]} Rfc8 {[%emt 0:04:30]} 22. Nxe4 {[%emt 0:05:08]} Bf8 {[%emt 0:01:30]} 23. Bc3 {[%emt 0:02:35]} b4 {[%emt 0:00:30]} 24. Rd7 {[%emt 0:00:05]} Be7 {[%emt 0:12:30]} 25. Bxb4 {[%emt 0:02:37]} Qxb3 {[%emt 0:00:30]} 26. Nc5 {[%emt 0:00:14]} Qf7 {[%emt 0:03:30]} 27. Rxb7 {[%emt 0:03:19]} Rab8 {[%emt 0:01:30]} 28. Rxb8 {[%emt 0:01:11]} Rxb8 {[%emt 0:00:30]} 29. Rd1 {[%emt 0:00:27]} Qa2 {[%emt 0:13:30]} 30. Nd3 {[%emt 0:01:12]} Bxb4 {[%emt 0:00:30]} 31. Nxb4 {[%emt 0:00:05]} Qa1+ {[%emt 0:00:30]} 32. Kd2 {[%emt 0:00:03]} Qxb2 {[%emt 0:01:30]} 33. Qc4+ {[%emt 0:00:07]} Kh8 {[%emt 0:00:30]} 34. Nd3 {[%emt 0:00:16]} Qb7 {[%emt 0:00:30]} 35. Nc5 {[%emt 0:02:16]} Qxg2+ {[%emt 0:00:30]} 36. Kc3 {[%emt 0:00:35]} Qf3+ {[%emt 0:01:30]} 37. Qd3 {[%emt 0:00:20]} Qa8 {[%emt 0:00:30]} 38. Qd5 {[%emt 0:00:20]} a5 {[%emt 0:02:30]} 39. Qxa8 {[%emt 0:00:39]} Rxa8 {[%emt 0:00:30]} 40. Ra1 {[%emt 0:00:00]} g6 {[%emt 0:00:00]} 41. fxg6 {[%emt 0:02:53]} hxg6 {[%emt 0:00:00]} 42. Kc4 {[%emt 0:00:30]} Kg7 {[%emt 0:00:30]} 43. Rb1 {[%emt 0:00:30]} f5 {[%emt 0:01:30]} 44. Kd5 {[%emt 0:00:30]} e4 {[%emt 0:00:00]} 45. Ke5 {[%emt 0:01:30]} a4 {[%emt 0:01:00]} 46. Ne6+ {[%emt 0:12:31]} Kh6 {[%emt 0:01:30]} 47. c4 {[%emt 0:00:22]} a3 {[%emt 0:00:30]} 48. c5 {[%emt 0:04:38]} a2 {[%emt 0:00:30]} 49. Ra1 {[%emt 0:00:02]} e3 {[%emt 0:01:30]} 50. c6 {[%emt 0:01:04]} e2 {[%emt 0:03:30]} 51. c7 {[%emt 0:00:28]} Re8 {[%emt 0:04:30]} 52. Kd6 {[%emt 0:00:38]} f4 {[%emt 0:02:30]} 53. Kd7 {[%emt 0:01:04]} f3 {[%emt 0:04:30]} 54. Kxe8 {[%emt 0:00:27]} f2 {[%emt 0:00:30]} 55. c8=Q {[%emt 0:00:07]} e1=Q {[%emt 0:00:30]} 56. Qc1+ {[%emt 0:00:08]} 1-0

[Event "28th CRO-chT 1B-Men 2019"]
[Site "Mali Losinj"]
[Date "2019.10.03"]
[Round "6.11"]
[White "Ciganovic, Nikola"]
[Black "Blagojevic, Marijan"]
[Result "1-0"]
[ECO "B90"]
[WhiteElo "2219"]
[BlackElo "2196"]
[Annotator "NA"]
[PlyCount "49"]
[EventDate "2019.09.28"]
[EventType "team-tourn"]
[EventCountry "CRO"]
[SourceTitle "playchess.com"]
[Source "ChessBase"]
[SourceQuality "1"]
[TimeControl "40/5400+30:1800+30"]

1. e4 {[%emt 0:00:30]} c5 {[%emt 0:00:30]} 2. Nf3 {[%emt 0:00:00]} d6 {[%emt 0:00:00]} 3. d4 {[%emt 0:00:00]} cxd4 {[%emt 0:00:00]} 4. Nxd4 {[%emt 0:00:00]} Nf6 {[%emt 0:00:30]} 5. Nc3 {[%emt 0:00:00]} a6 {[%emt 0:00:00]} 6. Qf3 {[%emt 0:00:30]} e6 {[%emt 0:06:00]} 7. g4 {[%emt 0:00:30]} Qc7 {[%emt 0:03:30]} 8. Be3 {[%emt 0:04:30]} Nc6 {[%emt 0:04:30]} 9. g5 {[%emt 0:00:30]} Nd7 {[%emt 0:03:30]} 10. O-O-O {[%emt 0:05:30]} Nde5 {[%emt 0:09:30]} 11. Qg3 {[%emt 0:14:30]} Nxd4 {[%emt 0:08:30]} 12. Bxd4 {[%emt 0:06:30]} Bd7 {[%emt 0:01:30]} 13. f4 {[%emt 0:08:30]} Nc6 {[%emt 0:02:30]} 14. f5 {[%emt 0:13:30]} O-O-O {[%emt 0:12:30]} 15. Be3 {[%emt 0:02:30]} Ne5 {[%emt 0:05:30]} 16. Qg1 {[%emt 0:10:30]} Re8 {[%emt 0:02:30]} 17. Bb6 {[%emt 0:04:30]} Qc6 {[%emt 0:00:30]} 18. fxe6 {[%emt 0:07:44]} fxe6 {[%emt 0:00:30]} 19. a4 {[%emt 0:00:17]} Kb8 {[%emt 0:07:30]} 20. Qd4 {[%emt 0:04:03]} Nf3 {[%emt 0:10:30]} 21. Qe3 {[%emt 0:00:45]} Be7 {[%emt 0:00:30]} 22. h4 {[%emt 0:01:21]} Ne5 {[%emt 0:03:23]} 23. Nb5 {[%emt 0:04:37]} Ng4 {[%emt 0:08:11]} 24. Bc7+ {[%emt 0:00:41]} Kc8 {[%emt 0:00:25]} 25. Qa7 {[%emt 0:00:41]} 1-0

[Event "28th CRO-chT 1B-Men 2019"]
[Site "Mali Losinj"]
[Date "2019.10.03"]
[Round "6.12"]
[White "Machata, Martin"]
[Black "Glavas, Dragan"]
[Result "0-1"]
[ECO "D26"]
[WhiteElo "2179"]
[BlackElo "2238"]
[Annotator "NA"]
[PlyCount "112"]
[EventDate "2019.09.28"]
[EventType "team-tourn"]
[EventCountry "CRO"]
[SourceTitle "playchess.com"]
[Source "ChessBase"]
[SourceQuality "1"]
[TimeControl "40/5400+30:1800+30"]

1. Nf3 {[%emt 0:08:30]} d5 {[%emt 0:00:30]} 2. c4 {[%emt 0:00:30]} dxc4 {[%emt 0:00:30]} 3. e3 {[%emt 0:12:30]} Nf6 {[%emt 0:18:30]} 4. Bxc4 {[%emt 0:01:30]} e6 {[%emt 0:01:30]} 5. d4 {[%emt 0:00:30]} Be7 {[%emt 0:01:30]} 6. Nc3 {[%emt 0:00:30]} c5 {[%emt 0:02:30]} 7. O-O {[%emt 0:00:30]} O-O {[%emt 0:00:30]} 8. Qe2 {[%emt 0:04:30]} a6 {[%emt 0:02:30]} 9. dxc5 {[%emt 0:09:30]} Bxc5 {[%emt 0:02:30]} 10. Rd1 {[%emt 0:01:30]} Qc7 {[%emt 0:06:30]} 11. e4 {[%emt 0:02:30]} Ng4 {[%emt 0:02:30]} 12. Be3 {[%emt 0:07:30]} Bxe3 {[%emt 0:06:30]} 13. fxe3 {[%emt 0:00:00]} Nc6 {[%emt 0:07:30]} 14. Rac1 {[%emt 0:03:00]} Bd7 {[%emt 0:07:30]} 15. Bb3 {[%emt 0:00:30]} Rad8 {[%emt 0:06:30]} 16. h3 {[%emt 0:02:30]} Nge5 {[%emt 0:00:30]} 17. Nd4 {[%emt 0:06:30]} Qa5 {[%emt 0:03:30]} 18. Rd2 {[%emt 0:03:30]} Ng6 {[%emt 0:05:30]} 19. Rcd1 {[%emt 0:02:30]} Nxd4 {[%emt 0:00:30]} 20. exd4 {[%emt 0:01:30]} Qg5 {[%emt 0:00:00]} 21. Kh1 {[%emt 0:13:43]} h5 {[%emt 0:00:00]} 22. d5 {[%emt 0:02:19]} e5 {[%emt 0:02:30]} 23. d6 {[%emt 0:00:37]} Nf4 {[%emt 0:02:25]} 24. Qf2 {[%emt 0:03:34]} Bc6 {[%emt 0:04:08]} 25. Bd5 {[%emt 0:01:30]} Bxd5 {[%emt 0:04:51]} 26. Nxd5 {[%emt 0:00:12]} Nxd5 {[%emt 0:00:38]} 27. Rxd5 {[%emt 0:00:17]} Rd7 {[%emt 0:00:21]} 28. Kh2 {[%emt 0:05:06]} Rc8 {[%emt 0:04:30]} 29. R1d3 {[%emt 0:00:35]} h4 {[%emt 0:02:54]} 30. Rf3 {[%emt 0:04:09]} f6 {[%emt 0:01:29]} 31. Rf5 {[%emt 0:00:35]} Qg3+ {[%emt 0:02:00]} 32. Qxg3 {[%emt 0:00:02]} hxg3+ {[%emt 0:00:09]} 33. Kxg3 {[%emt 0:00:07]} Rc4 {[%emt 0:00:36]} 34. Rf2 {[%emt 0:01:53]} Rxe4 {[%emt 0:00:30]} 35. Rc2 {[%emt 0:00:26]} Kf7 {[%emt 0:00:13]} 36. Kf3 {[%emt 0:01:33]} Rf4+ {[%emt 0:01:04]} 37. Ke3 {[%emt 0:00:10]} Ke6 {[%emt 0:00:21]} 38. Rcd2 {[%emt 0:01:29]} Rb4 {[%emt 0:00:29]} 39. g4 {[%emt 0:00:16]} Rb6 {[%emt 0:00:59]} 40. Ke4 {[%emt 0:00:00]} Rbxd6 {[%emt 0:00:00]} 41. Rxd6+ {[%emt 0:02:57]} Rxd6 {[%emt 0:04:53]} 42. Rc2 {[%emt 0:00:30]} g6 {[%emt 0:00:00]} 43. Rc7 {[%emt 0:03:30]} f5+ {[%emt 0:02:00]} 44. Ke3 {[%emt 0:06:50]} Rd7 {[%emt 0:01:30]} 45. Rxd7 {[%emt 0:02:36]} Kxd7 {[%emt 0:00:30]} 46. g5 {[%emt 0:00:00]} Ke6 {[%emt 0:03:30]} 47. Kf3 {[%emt 0:03:16]} Kd5 {[%emt 0:01:30]} 48. h4 {[%emt 0:03:04]} b5 {[%emt 0:03:39]} 49. b4 {[%emt 0:00:06]} e4+ {[%emt 0:00:59]} 50. Kf4 {[%emt 0:02:17]} Kd6 {[%emt 0:01:40]} 51. h5 {[%emt 0:09:00]} gxh5 {[%emt 0:01:23]} 52. Kxf5 {[%emt 0:01:45]} e3 {[%emt 0:00:19]} 53. g6 {[%emt 0:00:59]} Ke7 {[%emt 0:01:01]} 54. Kg5 {[%emt 0:00:25]} e2 {[%emt 0:00:11]} 55. Kh6 {[%emt 0:00:25]} e1=Q {[%emt 0:00:13]} 56. g7 {[%emt 0:00:20]} Kf7 {[%emt 0:00:21]} 0-1